[Event "Late-Titled-Tuesday-Blitz-April-16-2024"]
[Site "Chess.com"]
[Date "2024.04.16"]
[Round "3"]
[White "Harry_Rakkel"]
[Black "mbojan"]
[Result "0-1"]
[WhiteElo "2713"]
[BlackElo "2973"]
[TimeControl "180+1"]
[EndTime "14:28:35 PDT"]
[Termination "mbojan won on time"]

1. e4 {[%clk 0:03:00.9]} 1... a6 {[%clk 0:03:00.2]} 2. d4 {[%clk 0:02:59.3]}
2... e6 {[%clk 0:03:00.7]} 3. c3 {[%clk 0:02:57.3]} 3... d5 {[%clk 0:02:59.9]}
4. e5 {[%clk 0:02:56.3]} 4... c5 {[%clk 0:02:59.9]} 5. Nf3 {[%clk 0:02:54.3]}
5... Bd7 {[%clk 0:02:59.9]} 6. h4 {[%clk 0:02:53.5]} 6... Qb6 {[%clk 0:02:59.3]}
7. h5 {[%clk 0:02:53]} 7... h6 {[%clk 0:02:55.1]} 8. a3 {[%clk 0:02:51.7]} 8...
cxd4 {[%clk 0:02:54.4]} 9. cxd4 {[%clk 0:02:50.8]} 9... Bb5 {[%clk 0:02:54.5]}
10. Nc3 {[%clk 0:02:50.2]} 10... Bxf1 {[%clk 0:02:53.8]} 11. Kxf1 {[%clk
0:02:51.1]} 11... Nc6 {[%clk 0:02:54.2]} 12. b4 {[%clk 0:02:47.6]} 12... Nge7
{[%clk 0:02:51.3]} 13. g4 {[%clk 0:02:41.4]} 13... Rc8 {[%clk 0:02:49.7]} 14.
Na4 {[%clk 0:02:37.4]} 14... Qa7 {[%clk 0:02:35.2]} 15. Be3 {[%clk 0:02:31.4]}
15... Rc7 {[%clk 0:02:33.3]} 16. Rc1 {[%clk 0:02:29.9]} 16... Nc8 {[%clk
0:02:33.1]} 17. g5 {[%clk 0:02:21.6]} 17... hxg5 {[%clk 0:02:24.8]} 18. Nxg5
{[%clk 0:02:20.9]} 18... N8e7 {[%clk 0:02:19.4]} 19. Nc5 {[%clk 0:01:54.7]}
19... Nf5 {[%clk 0:02:13]} 20. Ncxe6 {[%clk 0:01:46.7]} 20... fxe6 {[%clk
0:02:13]} 21. Nxe6 {[%clk 0:01:47.6]} 21... Rf7 {[%clk 0:02:13.3]} 22. Kg2
{[%clk 0:01:38.1]} 22... Qb8 {[%clk 0:01:47.7]} 23. Ng5 {[%clk 0:01:22.6]} 23...
Qc7 {[%clk 0:01:47.7]} 24. Nxf7 {[%clk 0:01:19.8]} 24... Qxf7 {[%clk 0:01:48.6]}
25. Qg4 {[%clk 0:01:19.3]} 25... Qe6 {[%clk 0:01:43.3]} 26. Kf3 {[%clk
0:00:56.1]} 26... Be7 {[%clk 0:01:30.7]} 27. Rhg1 {[%clk 0:00:54.4]} 27... Kd7
{[%clk 0:01:25.5]} 28. Ke2 {[%clk 0:00:50.9]} 28... Rf8 {[%clk 0:01:20.4]} 29.
Kd3 {[%clk 0:00:50.3]} 29... Nd8 {[%clk 0:00:52.3]} 30. Qg6 {[%clk 0:00:47]}
30... Nc6 {[%clk 0:00:51.4]} 31. Qxe6+ {[%clk 0:00:45.3]} 31... Kxe6 {[%clk
0:00:52.3]} 32. Rg6+ {[%clk 0:00:44.6]} 32... Kd7 {[%clk 0:00:51.8]} 33. Rcg1
{[%clk 0:00:34.9]} 33... Nd8 {[%clk 0:00:50.9]} 34. R6g4 {[%clk 0:00:14.5]}
34... Ne6 {[%clk 0:00:50.8]} 35. Rc1 {[%clk 0:00:12.8]} 35... Rh8 {[%clk
0:00:51]} 36. b5 {[%clk 0:00:10.5]} 36... axb5 {[%clk 0:00:50.7]} 37. Rb1 {[%clk
0:00:10.7]} 37... b4 {[%clk 0:00:25.5]} 38. axb4 {[%clk 0:00:09.2]} 38... Rxh5
{[%clk 0:00:26.3]} 39. b5 {[%clk 0:00:09]} 39... Rh3 {[%clk 0:00:26.7]} 40. b6
{[%clk 0:00:07.2]} 40... g5 {[%clk 0:00:16.6]} 41. Rc1 {[%clk 0:00:06.8]} 41...
Bd8 {[%clk 0:00:16.1]} 42. Rb1 {[%clk 0:00:05.4]} 42... Kc6 {[%clk 0:00:16.6]}
43. Rgg1 {[%clk 0:00:04]} 43... Nexd4 {[%clk 0:00:11.1]} 44. Rgc1+ {[%clk
0:00:03.6]} 44... Kd7 {[%clk 0:00:11.7]} 45. Rc5 {[%clk 0:00:02.9]} 45... Ke6
{[%clk 0:00:07.3]} 46. Rc8 {[%clk 0:00:02.7]} 46... Nc6 {[%clk 0:00:07.9]} 47.
Rxc6+ {[%clk 0:00:01.6]} 47... bxc6 {[%clk 0:00:07.9]} 48. b7 {[%clk 0:00:01.7]}
48... Bc7 {[%clk 0:00:08.6]} 0-1

[Event "Late-Titled-Tuesday-Blitz-April-16-2024"]
[Site "Chess.com"]
[Date "2024.04.16"]
[Round "3"]
[White "Bykov_Egor"]
[Black "laskakid"]
[Result "1-0"]
[WhiteElo "2586"]
[BlackElo "2366"]
[TimeControl "180+1"]
[EndTime "14:28:36 PDT"]
[Termination "Bykov_Egor won by resignation"]

1. d4 {[%clk 0:02:55]} 1... d6 {[%clk 0:02:59.6]} 2. Nf3 {[%clk 0:02:54.2]} 2...
Nf6 {[%clk 0:02:59.5]} 3. c4 {[%clk 0:02:54.8]} 3... g6 {[%clk 0:02:59.3]} 4.
Nc3 {[%clk 0:02:55.5]} 4... Bg7 {[%clk 0:02:59.4]} 5. e4 {[%clk 0:02:55.8]} 5...
O-O {[%clk 0:02:59.4]} 6. Be2 {[%clk 0:02:56.3]} 6... e5 {[%clk 0:02:59.4]} 7.
Be3 {[%clk 0:02:56.9]} 7... exd4 {[%clk 0:02:59.2]} 8. Nxd4 {[%clk 0:02:56.8]}
8... Re8 {[%clk 0:02:59.2]} 9. f3 {[%clk 0:02:57.3]} 9... c6 {[%clk 0:02:59.4]}
10. Bf2 {[%clk 0:02:57.6]} 10... d5 {[%clk 0:02:59.3]} 11. exd5 {[%clk 0:02:56]}
11... cxd5 {[%clk 0:02:59.5]} 12. O-O {[%clk 0:02:56.5]} 12... Nc6 {[%clk
0:02:58.2]} 13. c5 {[%clk 0:02:52.9]} 13... Bf8 {[%clk 0:02:58]} 14. Nb3 {[%clk
0:02:35.2]} 14... a6 {[%clk 0:02:48.6]} 15. Re1 {[%clk 0:02:34.3]} 15... Nh5
{[%clk 0:02:42.9]} 16. Bf1 {[%clk 0:02:32.5]} 16... Be6 {[%clk 0:02:30.8]} 17.
Qd2 {[%clk 0:02:25.9]} 17... Qf6 {[%clk 0:02:05.8]} 18. Nxd5 {[%clk 0:02:00.1]}
18... Bxd5 {[%clk 0:01:58.8]} 19. Qxd5 {[%clk 0:02:01]} 19... Qxb2 {[%clk
0:01:53]} 20. Rab1 {[%clk 0:01:45.4]} 20... Qf6 {[%clk 0:01:44.2]} 21. Qd7
{[%clk 0:01:41.7]} 21... Ne5 {[%clk 0:01:10.2]} 22. Qxb7 {[%clk 0:01:34.6]}
22... Nf4 {[%clk 0:01:03]} 23. Re3 {[%clk 0:01:03.9]} 23... Rab8 {[%clk
0:00:54]} 24. Qxa6 {[%clk 0:01:03.3]} 24... Qxa6 {[%clk 0:00:41]} 25. Bxa6
{[%clk 0:01:04.2]} 25... Bxc5 {[%clk 0:00:40.9]} 26. Re4 {[%clk 0:00:58.3]}
26... Bxf2+ {[%clk 0:00:30.1]} 27. Kxf2 {[%clk 0:00:59.2]} 27... g5 {[%clk
0:00:20]} 28. Nd2 {[%clk 0:00:48.4]} 28... Rbd8 {[%clk 0:00:16.8]} 29. Nf1
{[%clk 0:00:35.5]} 29... f5 {[%clk 0:00:16.7]} 30. Re3 {[%clk 0:00:34.4]} 30...
Ned3+ {[%clk 0:00:15.3]} 31. Bxd3 {[%clk 0:00:33.5]} 31... Nxd3+ {[%clk
0:00:15.5]} 32. Kg1 {[%clk 0:00:29.9]} 32... f4 {[%clk 0:00:14]} 33. Rxe8+
{[%clk 0:00:29]} 33... Rxe8 {[%clk 0:00:14.4]} 34. a4 {[%clk 0:00:27.8]} 34...
Ra8 {[%clk 0:00:12.7]} 35. Ra1 {[%clk 0:00:24.1]} 35... Nb2 {[%clk 0:00:12.2]}
36. a5 {[%clk 0:00:21]} 36... Nc4 {[%clk 0:00:12]} 37. a6 {[%clk 0:00:21.2]}
37... Nd6 {[%clk 0:00:09.3]} 38. Nd2 {[%clk 0:00:20.2]} 38... Nb5 {[%clk
0:00:08.3]} 39. Ne4 {[%clk 0:00:20]} 39... h6 {[%clk 0:00:06.4]} 40. Nf6+ {[%clk
0:00:17.1]} 40... Kf7 {[%clk 0:00:05.8]} 41. Nd5 {[%clk 0:00:17.6]} 41... Ke6
{[%clk 0:00:05.8]} 42. Ra5 {[%clk 0:00:15.2]} 42... Kxd5 {[%clk 0:00:04.6]} 43.
Rxb5+ {[%clk 0:00:15.8]} 43... Kc6 {[%clk 0:00:05]} 44. Ra5 {[%clk 0:00:16.5]}
44... Kb6 {[%clk 0:00:05.3]} 45. Ra2 {[%clk 0:00:17]} 45... Rxa6 {[%clk
0:00:05.4]} 46. Rxa6+ {[%clk 0:00:15.2]} 46... Kxa6 {[%clk 0:00:05.6]} 47. h4
{[%clk 0:00:15.3]} 47... Kb5 {[%clk 0:00:05.8]} 48. hxg5 {[%clk 0:00:15.8]}
48... hxg5 {[%clk 0:00:05.2]} 49. Kh2 {[%clk 0:00:16.5]} 49... Kc4 {[%clk
0:00:04.8]} 50. Kh3 {[%clk 0:00:17.2]} 50... Kd4 {[%clk 0:00:04.9]} 51. Kg4
{[%clk 0:00:17.8]} 51... Ke3 {[%clk 0:00:05.2]} 52. Kxg5 {[%clk 0:00:18.5]}
52... Kf2 {[%clk 0:00:05.6]} 53. Kxf4 {[%clk 0:00:19.4]} 53... Kxg2 {[%clk
0:00:05.7]} 54. Kg4 {[%clk 0:00:20.3]} 54... Kf2 {[%clk 0:00:05.9]} 55. f4
{[%clk 0:00:21.2]} 1-0

[Event "Late-Titled-Tuesday-Blitz-April-16-2024"]
[Site "Chess.com"]
[Date "2024.04.16"]
[Round "3"]
[White "chessisveryfun1264"]
[Black "rdarruda"]
[Result "1-0"]
[WhiteElo "2747"]
[BlackElo "2539"]
[TimeControl "180+1"]
[EndTime "14:28:41 PDT"]
[Termination "chessisveryfun1264 won by resignation"]

1. e4 {[%clk 0:03:00.9]} 1... c5 {[%clk 0:02:57.2]} 2. Nf3 {[%clk 0:03:00.5]}
2... Nc6 {[%clk 0:02:56.6]} 3. Bb5 {[%clk 0:02:58.9]} 3... g6 {[%clk 0:02:55.7]}
4. O-O {[%clk 0:02:58.9]} 4... Bg7 {[%clk 0:02:55.9]} 5. c3 {[%clk 0:02:59.6]}
5... Nf6 {[%clk 0:02:55.5]} 6. Re1 {[%clk 0:02:50.4]} 6... O-O {[%clk
0:02:54.7]} 7. d4 {[%clk 0:02:49.6]} 7... cxd4 {[%clk 0:02:54.7]} 8. cxd4 {[%clk
0:02:50.5]} 8... d5 {[%clk 0:02:54.7]} 9. e5 {[%clk 0:02:51]} 9... Ne4 {[%clk
0:02:54.8]} 10. Nc3 {[%clk 0:02:51.7]} 10... Nxc3 {[%clk 0:02:54.5]} 11. bxc3
{[%clk 0:02:52.6]} 11... Bd7 {[%clk 0:02:54.6]} 12. Bd3 {[%clk 0:02:47.4]} 12...
Rc8 {[%clk 0:02:52.7]} 13. Bf4 {[%clk 0:02:46.8]} 13... Na5 {[%clk 0:02:47.5]}
14. Rc1 {[%clk 0:02:45.9]} 14... Nc4 {[%clk 0:02:46.3]} 15. Ng5 {[%clk
0:02:40.7]} 15... Nb2 {[%clk 0:02:43.3]} 16. Qf3 {[%clk 0:02:38.1]} 16... Nxd3
{[%clk 0:02:43.2]} 17. Qxd3 {[%clk 0:02:38.2]} 17... Qb6 {[%clk 0:02:38.5]} 18.
e6 {[%clk 0:02:36.3]} 18... Bxe6 {[%clk 0:02:37.5]} 19. Nxe6 {[%clk 0:02:26.9]}
19... fxe6 {[%clk 0:02:38.4]} 20. Bg5 {[%clk 0:02:22.2]} 20... Rf7 {[%clk
0:02:33.9]} 21. Qe3 {[%clk 0:02:10]} 21... Rc6 {[%clk 0:02:33.1]} 22. h4 {[%clk
0:02:05.1]} 22... Bf6 {[%clk 0:02:26.3]} 23. Qg3 {[%clk 0:01:47.8]} 23... Bxg5
{[%clk 0:02:16.5]} 24. hxg5 {[%clk 0:01:48.7]} 24... Rf5 {[%clk 0:02:01.9]} 25.
Re3 {[%clk 0:01:47.3]} 25... Qc7 {[%clk 0:01:53]} 26. Qg4 {[%clk 0:01:25]} 26...
Qf4 {[%clk 0:01:48.2]} 27. Qe2 {[%clk 0:01:24.8]} 27... Qxg5 {[%clk 0:01:40.2]}
28. Rb1 {[%clk 0:01:25.5]} 28... Rb6 {[%clk 0:01:29.6]} 29. Rxb6 {[%clk
0:01:15.4]} 29... axb6 {[%clk 0:01:30.5]} 30. Qb5 {[%clk 0:01:14.2]} 30... Qf4
{[%clk 0:01:23.8]} 31. Qe2 {[%clk 0:00:54.3]} 31... Rf6 {[%clk 0:01:21.2]} 32.
Rxe6 {[%clk 0:00:50.2]} 32... Qc1+ {[%clk 0:01:20.6]} 33. Kh2 {[%clk 0:00:49.8]}
33... Qh6+ {[%clk 0:01:17.6]} 34. Kg1 {[%clk 0:00:48.8]} 34... Qc1+ {[%clk
0:01:10.6]} 35. Kh2 {[%clk 0:00:34.3]} 35... Qxc3 {[%clk 0:01:10.4]} 36. Rxf6
{[%clk 0:00:25.9]} 36... exf6 {[%clk 0:01:09.9]} 37. Qe8+ {[%clk 0:00:26.6]}
37... Kg7 {[%clk 0:01:10.2]} 38. Qe7+ {[%clk 0:00:27.4]} 38... Kh6 {[%clk
0:01:10.4]} 39. Qxf6 {[%clk 0:00:28]} 39... Qc7+ {[%clk 0:01:08.9]} 40. g3
{[%clk 0:00:26.9]} 40... Qc8 {[%clk 0:00:40.5]} 41. Qf4+ {[%clk 0:00:23.3]}
41... Kg7 {[%clk 0:00:39.9]} 42. Qe5+ {[%clk 0:00:22.8]} 42... Kh6 {[%clk
0:00:40.1]} 43. Qxd5 {[%clk 0:00:23.6]} 43... Qc2 {[%clk 0:00:38.1]} 44. Kg2
{[%clk 0:00:19.4]} 44... Qc6 {[%clk 0:00:28.2]} 45. Qf3 {[%clk 0:00:14.1]} 45...
Kg5 {[%clk 0:00:26.4]} 46. d5 {[%clk 0:00:14]} 46... Qd6 {[%clk 0:00:25.8]} 47.
Qe3+ {[%clk 0:00:14.2]} 47... Kf6 {[%clk 0:00:25.3]} 48. Qd4+ {[%clk 0:00:14.8]}
48... Kf7 {[%clk 0:00:24.8]} 49. a4 {[%clk 0:00:14.5]} 49... h5 {[%clk
0:00:22.7]} 50. Kf3 {[%clk 0:00:13.7]} 50... Ke7 {[%clk 0:00:22.9]} 51. Qe4+
{[%clk 0:00:13.7]} 51... Kf7 {[%clk 0:00:23]} 52. Qf4+ {[%clk 0:00:13.5]} 52...
Ke7 {[%clk 0:00:22.1]} 53. Qxd6+ {[%clk 0:00:09.4]} 53... Kxd6 {[%clk 0:00:23]}
54. Ke4 {[%clk 0:00:09.9]} 54... g5 {[%clk 0:00:22.8]} 55. Kf5 {[%clk
0:00:09.4]} 55... h4 {[%clk 0:00:19.4]} 56. gxh4 {[%clk 0:00:08.7]} 56... gxh4
{[%clk 0:00:20.3]} 57. Kg4 {[%clk 0:00:09.1]} 57... Kxd5 {[%clk 0:00:20.2]} 58.
Kxh4 {[%clk 0:00:09.8]} 58... Kc4 {[%clk 0:00:20.4]} 59. f4 {[%clk 0:00:10.1]}
59... Kb4 {[%clk 0:00:20.4]} 60. f5 {[%clk 0:00:10.5]} 60... Kxa4 {[%clk
0:00:20.5]} 61. f6 {[%clk 0:00:11.1]} 1-0

[Event "Late-Titled-Tuesday-Blitz-April-16-2024"]
[Site "Chess.com"]
[Date "2024.04.16"]
[Round "3"]
[White "David_ATM"]
[Black "balachess2006"]
[Result "1/2-1/2"]
[WhiteElo "2480"]
[BlackElo "2687"]
[TimeControl "180+1"]
[EndTime "14:28:42 PDT"]
[Termination "Game drawn by stalemate"]

1. e4 {[%clk 0:03:00.9]} 1... c5 {[%clk 0:02:59.8]} 2. c3 {[%clk 0:03:01]} 2...
Nf6 {[%clk 0:02:59.5]} 3. e5 {[%clk 0:03:01.4]} 3... Nd5 {[%clk 0:03:00]} 4. d4
{[%clk 0:03:02.3]} 4... cxd4 {[%clk 0:03:00.8]} 5. Nf3 {[%clk 0:03:02.2]} 5...
Nc6 {[%clk 0:03:00.5]} 6. cxd4 {[%clk 0:03:03.1]} 6... d6 {[%clk 0:03:00.7]} 7.
Bc4 {[%clk 0:03:03.6]} 7... dxe5 {[%clk 0:02:59.8]} 8. dxe5 {[%clk 0:03:03.7]}
8... Nb6 {[%clk 0:03:00.4]} 9. Bd3 {[%clk 0:03:01.8]} 9... Bg4 {[%clk 0:03:00]}
10. O-O {[%clk 0:02:32.9]} 10... e6 {[%clk 0:02:51.5]} 11. Bb5 {[%clk
0:02:24.2]} 11... Qxd1 {[%clk 0:02:46.1]} 12. Rxd1 {[%clk 0:02:25.1]} 12... Bxf3
{[%clk 0:02:45.9]} 13. gxf3 {[%clk 0:02:26]} 13... Rc8 {[%clk 0:02:46]} 14. Be3
{[%clk 0:02:23.5]} 14... Nd7 {[%clk 0:02:41.5]} 15. f4 {[%clk 0:02:20.1]} 15...
a6 {[%clk 0:02:40.9]} 16. Be2 {[%clk 0:02:16.8]} 16... Bc5 {[%clk 0:02:29.7]}
17. Nc3 {[%clk 0:02:14]} 17... Bxe3 {[%clk 0:02:25.5]} 18. fxe3 {[%clk
0:02:14.9]} 18... Nc5 {[%clk 0:02:25.1]} 19. Rac1 {[%clk 0:02:10.1]} 19... Ke7
{[%clk 0:02:22.9]} 20. Nd5+ {[%clk 0:02:06.5]} 20... exd5 {[%clk 0:02:22.4]} 21.
Rxc5 {[%clk 0:02:06.7]} 21... Nb4 {[%clk 0:02:21.9]} 22. Rxc8 {[%clk 0:01:52.7]}
22... Rxc8 {[%clk 0:02:22.8]} 23. a3 {[%clk 0:01:52.9]} 23... Rc2 {[%clk
0:02:19.4]} 24. Bf3 {[%clk 0:01:44.3]} 24... Nc6 {[%clk 0:02:19.4]} 25. b4
{[%clk 0:00:57]} 25... Rc3 {[%clk 0:02:16]} 26. Kf2 {[%clk 0:00:57]} 26... Rxa3
{[%clk 0:02:15.6]} 27. Bxd5 {[%clk 0:00:57.3]} 27... Nxb4 {[%clk 0:02:07.8]} 28.
Bxb7 {[%clk 0:00:56]} 28... a5 {[%clk 0:02:02.9]} 29. Be4 {[%clk 0:00:36.5]}
29... Ra2+ {[%clk 0:02:01]} 30. Kf3 {[%clk 0:00:32.6]} 30... Rxh2 {[%clk
0:01:37.9]} 31. Ra1 {[%clk 0:00:32.5]} 31... Ra2 {[%clk 0:01:36.1]} 32. Rc1
{[%clk 0:00:33]} 32... Kd8 {[%clk 0:01:32]} 33. Bxh7 {[%clk 0:00:31.2]} 33... g6
{[%clk 0:01:30]} 34. e6 {[%clk 0:00:30.3]} 34... fxe6 {[%clk 0:01:27.7]} 35.
Bxg6 {[%clk 0:00:29.8]} 35... Ra3 {[%clk 0:01:26.7]} 36. Be4 {[%clk 0:00:28.7]}
36... Ke7 {[%clk 0:01:21.9]} 37. Rc7+ {[%clk 0:00:27.5]} 37... Kd6 {[%clk
0:01:20.9]} 38. Ra7 {[%clk 0:00:23.9]} 38... Na2 {[%clk 0:01:11.9]} 39. Ra6+
{[%clk 0:00:23]} 39... Ke7 {[%clk 0:01:11.1]} 40. Ra7+ {[%clk 0:00:23.5]} 40...
Kf6 {[%clk 0:01:10.9]} 41. Ra6 {[%clk 0:00:23.9]} 41... Nb4 {[%clk 0:01:10.4]}
42. Rb6 {[%clk 0:00:21.8]} 42... Ke7 {[%clk 0:01:08.5]} 43. f5 {[%clk
0:00:18.6]} 43... exf5 {[%clk 0:01:03.2]} 44. Rb7+ {[%clk 0:00:17.9]} 44... Kd6
{[%clk 0:00:42.6]} 45. Bxf5 {[%clk 0:00:17.5]} 45... Nd5 {[%clk 0:00:43.1]} 46.
Ra7 {[%clk 0:00:06.1]} 46... Rxe3+ {[%clk 0:00:42.8]} 47. Kf2 {[%clk 0:00:06.6]}
47... Ra3 {[%clk 0:00:41.9]} 48. Ke2 {[%clk 0:00:05.9]} 48... Ke5 {[%clk
0:00:40.9]} 49. Bh7 {[%clk 0:00:05.8]} 49... Kd4 {[%clk 0:00:39.9]} 50. Kd2
{[%clk 0:00:06.1]} 50... Ra2+ {[%clk 0:00:39.8]} 51. Kc1 {[%clk 0:00:06.6]}
51... Nc3 {[%clk 0:00:31.7]} 52. Bg8 {[%clk 0:00:05.2]} 52... Ra1+ {[%clk
0:00:25.9]} 53. Kb2 {[%clk 0:00:05.8]} 53... Rb1+ {[%clk 0:00:26.3]} 54. Kc2
{[%clk 0:00:06.4]} 54... Rb5 {[%clk 0:00:16.6]} 55. Rd7+ {[%clk 0:00:06.3]}
55... Nd5 {[%clk 0:00:16.7]} 56. Bxd5 {[%clk 0:00:05.6]} 56... Rxd5 {[%clk
0:00:16.3]} 57. Rxd5+ {[%clk 0:00:06.5]} 57... Kxd5 {[%clk 0:00:17.2]} 58. Kb3
{[%clk 0:00:06.9]} 58... Kc5 {[%clk 0:00:17.4]} 59. Ka2 {[%clk 0:00:07.4]} 59...
Kb6 {[%clk 0:00:18.3]} 60. Ka1 {[%clk 0:00:08.3]} 60... Kb5 {[%clk 0:00:19.2]}
61. Kb1 {[%clk 0:00:09.2]} 61... Kb4 {[%clk 0:00:20.1]} 62. Ka1 {[%clk
0:00:10.1]} 62... Ka3 {[%clk 0:00:21]} 63. Kb1 {[%clk 0:00:11]} 63... Kb3 {[%clk
0:00:20.8]} 64. Ka1 {[%clk 0:00:11.9]} 64... a4 {[%clk 0:00:21.7]} 65. Kb1
{[%clk 0:00:12.8]} 65... a3 {[%clk 0:00:22.6]} 66. Ka1 {[%clk 0:00:13.7]} 66...
a2 {[%clk 0:00:23.5]} 1/2-1/2

[Event "Late-Titled-Tuesday-Blitz-April-16-2024"]
[Site "Chess.com"]
[Date "2024.04.16"]
[Round "3"]
[White "laziestwin"]
[Black "RianKapriaga"]
[Result "1-0"]
[WhiteElo "2559"]
[BlackElo "2294"]
[TimeControl "180+1"]
[EndTime "14:28:42 PDT"]
[Termination "laziestwin won by checkmate"]

1. e4 {[%clk 0:02:55.3]} 1... c6 {[%clk 0:02:59.5]} 2. Nf3 {[%clk 0:02:41.9]}
2... d5 {[%clk 0:02:58.8]} 3. d3 {[%clk 0:02:42.3]} 3... Bg4 {[%clk 0:02:55.5]}
4. Nbd2 {[%clk 0:02:41.1]} 4... Nd7 {[%clk 0:02:54.1]} 5. h3 {[%clk 0:02:40]}
5... Bxf3 {[%clk 0:02:53.1]} 6. Nxf3 {[%clk 0:02:39.9]} 6... e6 {[%clk
0:02:46.6]} 7. Be2 {[%clk 0:02:29.7]} 7... Bd6 {[%clk 0:02:40.2]} 8. O-O {[%clk
0:02:24.5]} 8... Ngf6 {[%clk 0:02:38.5]} 9. Re1 {[%clk 0:02:21.5]} 9... Qc7
{[%clk 0:02:31.7]} 10. Bf1 {[%clk 0:02:14.9]} 10... O-O {[%clk 0:02:26.3]} 11.
b3 {[%clk 0:02:09.5]} 11... Rfd8 {[%clk 0:02:22.5]} 12. Bb2 {[%clk 0:02:08.1]}
12... dxe4 {[%clk 0:01:59.3]} 13. dxe4 {[%clk 0:02:08]} 13... Ne5 {[%clk
0:01:52.2]} 14. Nd2 {[%clk 0:01:41.6]} 14... Ng6 {[%clk 0:01:47.1]} 15. Qe2
{[%clk 0:01:29.8]} 15... Bh2+ {[%clk 0:01:43.1]} 16. Kh1 {[%clk 0:01:27.8]}
16... Be5 {[%clk 0:01:41.8]} 17. Bxe5 {[%clk 0:01:23.5]} 17... Qxe5 {[%clk
0:01:40.2]} 18. Nc4 {[%clk 0:01:18.2]} 18... Qc7 {[%clk 0:01:19.3]} 19. g3
{[%clk 0:00:34.3]} 19... b5 {[%clk 0:01:10.6]} 20. Nb2 {[%clk 0:00:33.6]} 20...
a6 {[%clk 0:00:48.4]} 21. Bg2 {[%clk 0:00:22.1]} 21... e5 {[%clk 0:00:47.3]} 22.
Rad1 {[%clk 0:00:19.7]} 22... h5 {[%clk 0:00:35.3]} 23. h4 {[%clk 0:00:13.4]}
23... Nf8 {[%clk 0:00:17.8]} 24. a4 {[%clk 0:00:09.7]} 24... Ne6 {[%clk
0:00:16.5]} 25. c3 {[%clk 0:00:08.4]} 25... Rxd1 {[%clk 0:00:12]} 26. Rxd1
{[%clk 0:00:08.1]} 26... Rd8 {[%clk 0:00:12.3]} 27. Bh3 {[%clk 0:00:06.7]} 27...
Nf8 {[%clk 0:00:10.2]} 28. b4 {[%clk 0:00:06.1]} 28... g6 {[%clk 0:00:09.3]} 29.
f3 {[%clk 0:00:04.7]} 29... Kg7 {[%clk 0:00:08.7]} 30. Nd3 {[%clk 0:00:03.8]}
30... Qd6 {[%clk 0:00:07.4]} 31. Nb2 {[%clk 0:00:02.4]} 31... Qc7 {[%clk
0:00:07.3]} 32. axb5 {[%clk 0:00:02.5]} 32... Qb7 {[%clk 0:00:07.5]} 33. bxa6
{[%clk 0:00:02.2]} 33... Rxd1+ {[%clk 0:00:07.3]} 34. Nxd1 {[%clk 0:00:02.4]}
34... Qa7 {[%clk 0:00:07.3]} 35. Ne3 {[%clk 0:00:02.9]} 35... Qc7 {[%clk
0:00:06.6]} 36. Qc4 {[%clk 0:00:03.5]} 36... Qa7 {[%clk 0:00:06]} 37. Nc2 {[%clk
0:00:02.9]} 37... Qf2 {[%clk 0:00:05.6]} 38. Qf1 {[%clk 0:00:01.6]} 38... Qxc2
{[%clk 0:00:05.7]} 39. a7 {[%clk 0:00:02.2]} 39... Qa2 {[%clk 0:00:05.6]} 40.
Qg1 {[%clk 0:00:02.4]} 40... Ne6 {[%clk 0:00:04.9]} 41. Bxe6 {[%clk 0:00:02.2]}
41... fxe6 {[%clk 0:00:05.8]} 42. Qc5 {[%clk 0:00:02.7]} 42... Kh6 {[%clk
0:00:05.3]} 43. Qf8+ {[%clk 0:00:03]} 43... Kh7 {[%clk 0:00:05.2]} 44. Qf7+
{[%clk 0:00:03.8]} 44... Kh6 {[%clk 0:00:03.6]} 45. Qxf6 {[%clk 0:00:04.5]}
45... Qf2 {[%clk 0:00:03]} 46. Qh8# {[%clk 0:00:04.4]} 1-0

[Event "Late-Titled-Tuesday-Blitz-April-16-2024"]
[Site "Chess.com"]
[Date "2024.04.16"]
[Round "3"]
[White "albayo"]
[Black "Cuchulin"]
[Result "1/2-1/2"]
[WhiteElo "2535"]
[BlackElo "2220"]
[TimeControl "180+1"]
[EndTime "14:28:44 PDT"]
[Termination "Game drawn by repetition"]

1. Nf3 {[%clk 0:02:59.3]} 1... c5 {[%clk 0:02:59.1]} 2. e4 {[%clk 0:02:51.3]}
2... Nc6 {[%clk 0:02:58.8]} 3. d4 {[%clk 0:02:50.8]} 3... cxd4 {[%clk
0:02:59.4]} 4. Nxd4 {[%clk 0:02:50.9]} 4... g6 {[%clk 0:03:00.3]} 5. c4 {[%clk
0:02:49.4]} 5... Nf6 {[%clk 0:03:00.4]} 6. Nc3 {[%clk 0:02:49.2]} 6... d6 {[%clk
0:02:58.8]} 7. Be2 {[%clk 0:02:48]} 7... Nxd4 {[%clk 0:02:56.9]} 8. Qxd4 {[%clk
0:02:48.9]} 8... Bg7 {[%clk 0:02:57.2]} 9. O-O {[%clk 0:02:47.1]} 9... O-O
{[%clk 0:02:57.2]} 10. Qd1 {[%clk 0:02:47.1]} 10... a5 {[%clk 0:02:57.4]} 11.
Be3 {[%clk 0:02:46.9]} 11... a4 {[%clk 0:02:57.4]} 12. Bd4 {[%clk 0:02:36.2]}
12... Qa5 {[%clk 0:02:56.6]} 13. b3 {[%clk 0:02:28.5]} 13... Bd7 {[%clk
0:02:37.9]} 14. Bf3 {[%clk 0:02:15.9]} 14... Bc6 {[%clk 0:02:37]} 15. Rb1 {[%clk
0:02:10.3]} 15... axb3 {[%clk 0:02:33.8]} 16. axb3 {[%clk 0:02:11.2]} 16... Qg5
{[%clk 0:02:17.1]} 17. b4 {[%clk 0:02:01.8]} 17... Nd7 {[%clk 0:02:00.7]} 18. b5
{[%clk 0:01:57]} 18... Ne5 {[%clk 0:01:50.2]} 19. bxc6 {[%clk 0:01:30.8]} 19...
Nxf3+ {[%clk 0:01:50]} 20. Qxf3 {[%clk 0:01:31.7]} 20... Bxd4 {[%clk 0:01:49.7]}
21. cxb7 {[%clk 0:01:31.2]} 21... Rab8 {[%clk 0:01:49.7]} 22. Nd5 {[%clk
0:01:29.6]} 22... e6 {[%clk 0:01:44.7]} 23. Rfd1 {[%clk 0:01:08]} 23... Bc5
{[%clk 0:01:08.1]} 24. Nf6+ {[%clk 0:01:06.9]} 24... Kg7 {[%clk 0:01:01.5]} 25.
Nd7 {[%clk 0:01:07.1]} 25... Qe7 {[%clk 0:01:01.5]} 26. Qc3+ {[%clk 0:00:52.1]}
26... e5 {[%clk 0:00:56.2]} 27. Nxf8 {[%clk 0:00:47.4]} 27... Kxf8 {[%clk
0:00:57.1]} 28. Qh3 {[%clk 0:00:44.5]} 28... Qc7 {[%clk 0:00:43.2]} 29. Qxh7
{[%clk 0:00:37.5]} 29... Rxb7 {[%clk 0:00:42.5]} 30. Qh8+ {[%clk 0:00:33.7]}
30... Ke7 {[%clk 0:00:42.7]} 31. Qa8 {[%clk 0:00:33.4]} 31... Ra7 {[%clk
0:00:37.4]} 32. Qd5 {[%clk 0:00:30.2]} 32... Kf8 {[%clk 0:00:35.7]} 33. Rb2
{[%clk 0:00:26.5]} 33... Bd4 {[%clk 0:00:30.2]} 34. Rc2 {[%clk 0:00:22.2]} 34...
Kg7 {[%clk 0:00:26.1]} 35. g3 {[%clk 0:00:21.9]} 35... Qe7 {[%clk 0:00:24.6]}
36. Kg2 {[%clk 0:00:17.6]} 36... Qf6 {[%clk 0:00:21.9]} 37. Rd3 {[%clk
0:00:13.5]} 37... Ra1 {[%clk 0:00:21.2]} 38. Rf3 {[%clk 0:00:13.5]} 38... Qe7
{[%clk 0:00:20.3]} 39. c5 {[%clk 0:00:12.8]} 39... dxc5 {[%clk 0:00:19.3]} 40.
Ra2 {[%clk 0:00:13.3]} 40... Rxa2 {[%clk 0:00:18.7]} 41. Qxa2 {[%clk 0:00:14.2]}
41... Qb7 {[%clk 0:00:16.7]} 42. Qd5 {[%clk 0:00:13.7]} 42... Qc7 {[%clk
0:00:16.5]} 43. Qc4 {[%clk 0:00:13.3]} 43... Qb7 {[%clk 0:00:16]} 44. Qd5 {[%clk
0:00:13.6]} 44... Qc7 {[%clk 0:00:16.4]} 45. Rb3 {[%clk 0:00:13.5]} 45... Qe7
{[%clk 0:00:11.8]} 46. f3 {[%clk 0:00:11]} 46... Qg5 {[%clk 0:00:09.8]} 47. Rb7
{[%clk 0:00:10]} 47... Qd2+ {[%clk 0:00:09.6]} 48. Kh3 {[%clk 0:00:10.5]} 48...
Qh6+ {[%clk 0:00:09.5]} 49. Kg2 {[%clk 0:00:10.9]} 49... Qd2+ {[%clk 0:00:09.2]}
50. Kh3 {[%clk 0:00:11.4]} 50... Qh6+ {[%clk 0:00:09.2]} 51. Kg2 {[%clk
0:00:04.3]} 51... Qd2+ {[%clk 0:00:08.7]} 1/2-1/2